bitfinex-derivatives/quotes_BNBF0:USTF0_20250115
["timestamp","ask_amount","ask_price","bid_price","bid_amount"]
[1736912736754,1.07154352,699.78,699.14,0.809]
[1736912737754,0.28579185,699.81,699.14,0.809]
[1736912746860,1.07154352,699.78,699.14,0.809]
[1736912749265,0.28579185,699.81,699.14,0.809]
[1736912788194,1.07154352,699.8,699.14,0.809]
[1736912789594,0.28579185,699.81,699.14,0.809]
[1736912790789,1.35733537,699.81,699.14,0.809]
[1736912791795,1.07154352,699.8,699.14,0.809]
[1736912792992,0.28579185,699.81,699.14,0.809]
[1736912793803,1.07154352,699.77,699.14,0.809]
[1736912794901,1.07154352,699.78,699.14,0.809]
[1736912796099,0.28579185,699.81,699.14,0.809]
[1736912800403,1.07154352,699.99,699.14,0.809]
[1736912801198,1.07154352,700.03,699.14,0.809]
[1736912802404,1.07154352,700.06,699.14,0.809]
[1736912803402,1.07154352,700.07,699.14,0.809]
[1736912804203,1.07154352,700.09,699.14,0.809]
[1736912806506,1.07154352,700.1,699.14,0.809]
[1736912807800,1.07154352,700.16,699.14,0.809]
[1736912808703,1.07154352,700.18,699.14,0.809]
[1736912808904,0.26269815,700.17,699.14,0.809]
[1736912810006,1.07154352,700.16,699.14,0.809]
[1736912810200,0.26269815,700.15,699.14,0.809]
[1736912811105,1.33424167,700.15,699.14,0.809]
[1736912811305,0.26269815,700.14,699.14,0.809]
[1736912811605,0.26272456,700.13,699.14,0.809]
[1736912811804,0.26272456,700.12,699.14,0.809]
[1736912812006,1.33426808,700.11,699.14,0.809]
[1736912812206,0.26272456,700.1,699.14,0.809]
[1736912813001,1.07154352,700.11,699.14,0.809]
[1736912813205,1.33426686,700.1,699.14,0.809]
[1736912813400,1.07154352,700.1,699.14,0.809]
[1736912814404,0.26273461,700.09,699.14,0.809]
[1736912814601,0.54841216,700.09,699.14,0.809]
[1736912814807,0.26273461,700.08,699.14,0.809]
[1736912815006,1.07154352,700.05,699.14,0.809]
[1736912815206,0.26273461,700.04,699.14,0.809]
[1736912816309,1.07154352,700.0,699.14,0.809]
[1736912816501,0.26273461,699.99,699.14,0.809]
[1736912817107,1.07154352,699.89,699.14,0.809]
[1736912818104,1.07154352,699.93,699.14,0.809]
[1736912819310,1.07154352,699.98,699.14,0.809]
[1736912820509,1.07154352,699.99,699.14,0.809]
[1736912821113,0.28567755,700.09,699.14,0.809]
[1736912821311,0.26277271,700.08,699.14,0.809]
[1736912821610,0.28567755,700.09,699.14,0.809]
[1736912821611,0.28568571,700.07,699.14,0.809]
[1736912822307,1.06937849,699.99,699.14,0.809]
[1736912822911,0.26278253,699.98,699.14,0.809]
[1736912823407,1.06937849,699.97,699.14,0.809]
[1736912823606,0.26278253,699.96,699.14,0.809]
[1736912824415,1.06937849,699.97,699.14,0.809]
[1736912825115,1.06937849,699.98,699.14,0.809]
[1736912825504,0.26277983,699.97,699.14,0.809]
[1736912825808,1.06937849,699.98,699.14,0.809]
[1736912826108,0.26277893,699.97,699.14,0.809]
[1736912827517,0.26278183,699.96,699.14,0.809]
[1736912827714,0.26278183,699.95,699.14,0.809]
[1736912827914,0.26278183,699.94,699.14,0.809]
[1736912828109,0.26278183,699.93,699.14,0.809]
[1736912828312,1.06937849,699.92,699.14,0.809]
[1736912828508,0.26277959,699.91,699.14,0.809]
[1736912829512,0.26277959,699.9,699.14,0.809]
[1736912829714,0.26277959,699.89,699.14,0.809]
[1736912829911,0.26277959,699.94,699.14,0.809]
[1736912830212,1.06937849,699.94,699.14,0.809]
[1736912830411,0.26277301,699.93,699.14,0.809]
[1736912831216,1.06937849,699.88,699.14,0.809]
[1736912831408,0.26277301,699.87,699.14,0.809]
[1736912832717,1.06937849,699.89,699.14,0.809]
[1736912832718,0.26277301,699.86,699.14,0.809]
[1736912833017,0.26277301,699.85,699.14,0.809]
[1736912833215,0.26277301,699.84,699.14,0.809]
[1736912833409,0.26277301,699.83,699.14,0.809]
[1736912833614,0.28568571,700.07,699.14,0.809]
[1736912833615,0.26277301,699.82,699.14,0.809]
[1736912833814,0.26277301,699.81,699.14,0.809]
[1736912834115,0.26277301,699.8,699.14,0.809]
[1736912834311,1.06937849,699.88,699.14,0.809]
[1736912834516,0.26278423,699.87,699.14,0.809]
[1736912835117,0.26278423,699.86,699.14,0.809]
[1736912835419,0.26278423,699.85,699.14,0.809]
[1736912835612,0.26278423,699.84,699.14,0.809]
[1736912835816,0.26278124,699.83,699.14,0.809]
[1736912836016,0.26278124,699.82,699.14,0.809]
[1736912836216,0.26278124,699.81,699.14,0.809]
[1736912836413,0.26278215,699.8,699.14,0.809]
[1736912836617,1.06937849,699.89,699.14,0.809]
[1736912838024,0.28568571,700.07,699.14,0.809]
[1736912838419,0.26278622,700.06,699.14,0.809]
[1736912838615,0.28568571,700.07,699.14,0.809]
[1736912839019,0.26278622,700.06,699.14,0.809]
[1736912839322,0.28569387,700.05,699.14,0.809]
[1736912844623,1.06937849,700.04,699.14,0.809]
[1736912844824,0.28570204,700.03,699.14,0.809]
[1736912845627,1.06937849,700.02,699.14,0.809]
[1736912845827,0.2857102,700.01,699.14,0.809]
[1736912846528,1.06937849,700.0,699.14,0.809]
[1736912846730,0.26277868,699.99,699.14,0.809]
[1736912846928,0.26277847,699.98,699.14,0.809]
[1736912847125,0.26277847,699.97,699.14,0.809]
[1736912847329,0.26277847,699.96,699.14,0.809]
[1736912847529,0.26277847,699.95,699.14,0.809]
[1736912847730,1.06937849,699.86,699.14,0.809]
[1736912848433,1.06937849,699.84,699.14,0.809]
[1736912849231,1.06937849,699.83,699.14,0.809]
[1736912850232,0.2857102,700.01,699.14,0.809]
[1736912850233,1.06937849,699.81,699.14,0.809]
[1736912851233,1.06937849,699.78,699.14,0.809]
[1736912852434,1.35508869,700.01,699.14,0.809]
[1736912852435,1.06937849,699.76,699.14,0.809]
[1736912853537,1.06937849,699.74,699.14,0.809]
[1736912853933,0.28582453,699.73,699.14,0.809]
[1736912854131,0.28582453,699.73,699.14,0.79939553]
[1736912855539,1.06937849,699.71,699.14,0.79939553]
[1736912855739,0.28583678,699.7,699.14,0.79939553]
[1736912894857,0.26284724,699.69,699.14,0.79939553]
[1736912896060,0.26287107,699.68,699.14,0.79939553]
[1736912896262,1.06937849,699.55,699.14,0.79939553]
[1736912898469,1.06937849,699.56,699.14,0.79939553]
[1736912898767,0.26288142,699.55,699.14,0.79939553]
[1736912899566,0.26288142,699.54,699.14,0.79939553]
[1736912899771,0.26288142,699.53,699.14,0.79939553]
[1736912899966,1.06937849,699.58,699.14,0.79939553]
[1736912899967,0.26290694,699.52,699.14,0.79939553]
[1736912900170,0.26290694,699.51,699.14,0.79939553]
[1736912900367,1.06937849,699.58,699.14,0.79939553]
[1736912900566,1.33228105,699.57,699.14,0.79939553]
[1736912900763,1.06937849,699.57,699.14,0.79939553]
[1736912901172,0.26290175,699.56,699.14,0.79939553]
[1736912901473,1.06937849,699.57,699.14,0.79939553]
[1736912901869,0.28588581,699.58,699.14,0.79939553]
[1736912902066,0.26290055,699.57,699.14,0.79939553]
[1736912904977,0.28588581,699.58,699.14,0.79939553]
[1736912943201,1.07098743,699.7,699.14,0.79939553]
[1736912944109,1.07098743,699.81,699.14,0.79939553]
[1736912945212,1.07098743,699.92,699.14,0.79939553]
[1736912946305,1.07098743,699.99,699.14,0.79939553]
[1736912947509,1.07098743,700.08,699.14,0.79939553]
[1736912947702,0.26274098,700.07,699.14,0.79939553]
[1736912948504,0.26274098,700.06,699.14,0.79939553]
[1736912948706,0.26274098,700.05,699.14,0.79939553]
[1736912948903,1.07098743,700.1,699.14,0.79939553]
[1736912948904,0.26274098,700.04,699.14,0.79939553]
[1736912949107,0.26274098,700.03,699.14,0.79939553]
[1736912949308,1.07098743,700.12,699.14,0.79939553]
[1736912949508,0.26272625,700.11,699.14,0.79939553]
[1736912950110,0.26272868,700.1,699.14,0.79939553]
[1736912950511,0.26272868,700.11,699.14,0.79939553]
[1736912950709,0.26272868,700.09,699.14,0.79939553]
[1736912950907,0.26272868,700.1,699.14,0.79939553]
[1736912951104,1.07098743,700.19,699.14,0.79939553]
[1736912951307,0.54835204,700.18,699.14,0.79939553]
[1736912951508,0.54835612,700.17,699.14,0.79939553]
[1736912951710,0.26271121,700.16,699.14,0.79939553]
[1736912952108,0.28564491,700.17,699.14,0.79939553]
[1736912968419,0.26265735,700.16,699.14,0.79939553]
[1736912972520,0.26265454,700.15,699.14,0.79939553]
[1736912972724,0.26265454,700.14,699.14,0.79939553]
[1736912973024,0.28564491,700.17,699.14,0.79939553]
[1736912973325,0.26265347,700.16,699.14,0.79939553]
[1736912974125,0.28564491,700.17,699.14,0.79939553]
[1736912974326,0.26264727,700.16,699.14,0.79939553]
[1736912975225,0.28564491,700.17,699.14,0.79939553]
[1736912975423,0.2626537,700.16,699.14,0.79939553]
[1736912980925,0.26265914,700.15,699.14,0.79939553]
[1736912981124,0.26265914,700.14,699.14,0.79939553]
[1736912981328,0.28564491,700.17,699.14,0.79939553]
[1736912981329,0.26265914,700.13,699.14,0.79939553]
[1736912981530,0.26265914,700.12,699.14,0.79939553]
[1736912981729,0.28564491,700.17,699.14,0.79939553]
[1736912982031,1.07098743,700.15,699.14,0.79939553]
[1736912982225,0.26265483,700.14,699.14,0.79939553]
[1736912983231,1.07098743,700.11,699.14,0.79939553]
[1736912983432,0.26265483,700.1,699.14,0.79939553]
[1736912983732,0.26265722,700.09,699.14,0.79939553]
[1736912983933,1.07098743,700.11,699.14,0.79939553]
[1736912984134,0.26265876,700.1,699.14,0.79939553]
[1736912984432,1.07098743,700.08,699.14,0.79939553]
[1736912985535,1.07098743,700.07,699.14,0.79939553]
[1736912986628,1.07098743,700.04,699.14,0.79939553]
[1736912987638,1.07098743,700.0,699.14,0.79939553]
[1736912991034,1.07098743,700.01,699.14,0.79939553]
[1736912992337,1.07098743,699.98,699.14,0.79939553]
[1736912994632,0.28564491,700.17,699.14,0.79939553]
[1736912994633,1.07098743,700.0,699.14,0.79939553]
[1736912995939,1.07098743,699.99,699.14,0.79939553]
[1736912997341,1.07098743,700.0,699.14,0.79939553]
[1736912998642,0.28564491,700.17,699.14,0.79939553]
[1736913007650,1.07098743,700.15,699.14,0.79939553]
[1736913008550,1.07098743,700.16,699.14,0.79939553]
[1736913009450,1.07098743,700.14,699.14,0.79939553]
[1736913010544,1.07098743,700.15,699.14,0.79939553]
[1736913011645,1.07098743,700.16,699.14,0.79939553]
[1736913012650,1.07098743,700.11,699.14,0.79939553]
[1736913013751,0.28564491,700.17,699.14,0.79939553]
[1736913027064,1.07098743,700.14,699.14,0.79939553]
[1736913029059,0.28564491,700.17,699.14,0.79939553]
[1736913029060,1.07098743,700.13,699.14,0.79939553]
[1736913031565,0.28564491,700.17,699.15,1.0659833]
[1736913034766,0.28564491,700.17,699.14,1.0659833]
[1736913035666,0.28564491,700.17,699.13,1.0659833]
[1736913035864,0.28564491,700.17,699.14,0.776]
[1736913037665,0.28564491,700.17,699.14,1.8419833]
[1736913038667,0.28564491,700.17,699.15,1.0659833]
[1736913039469,0.28564491,700.17,699.14,0.776]
[1736913039470,0.28564491,700.17,699.14,1.8419833]
[1736913040467,0.28564491,700.17,699.14,0.776]
[1736913050378,1.07098743,700.29,699.14,0.776]
[1736913050579,1.07098743,700.29,699.15,0.28606164]
[1736913050975,1.28518492,700.77,699.15,0.28606164]
[1736913050976,1.07098743,700.72,699.15,0.28606164]
[1736913051180,0.28542478,700.71,699.15,0.28606164]
[1736913059189,0.26256591,700.7,699.15,0.28606164]
[1736913059489,0.28543293,700.69,699.15,0.28606164]
[1736913059688,0.26256591,700.68,699.15,0.28606164]
[1736913059886,0.28544107,700.67,699.15,0.28606164]
[1736913060084,0.26256591,700.66,699.15,0.28606164]
[1736913060290,1.07098743,700.53,699.15,0.28606164]
[1736913060492,0.26257486,700.52,699.15,0.28606164]
[1736913061191,1.07098743,700.49,699.15,0.28606164]
[1736913061390,0.26257486,700.48,699.15,0.28606164]
[1736913062088,1.07098743,700.39,699.15,0.28606164]
[1736913062293,0.26257486,700.38,699.15,0.28606164]
[1736913062891,0.26257486,700.38,699.15,1.35606164]
[1736913063195,1.07098743,700.35,699.15,1.35606164]
[1736913064095,1.07098743,700.38,699.15,1.35606164]
[1736913065996,1.07098743,700.37,699.15,1.35606164]
[1736913066998,1.07098743,700.39,699.15,1.35606164]
[1736913067997,1.07098743,700.4,699.15,1.35606164]
[1736913069299,1.07098743,700.39,699.15,1.35606164]
[1736913070202,1.07098743,700.46,699.15,1.35606164]
[1736913072002,1.07098743,700.43,699.15,1.35606164]
[1736913073098,0.28550627,700.51,699.15,1.35606164]
[1736913084215,1.07098743,700.47,699.15,1.35606164]
[1736913085311,1.07098743,700.46,699.15,1.35606164]
[1736913087610,0.28550627,700.51,699.15,1.35606164]
[1736913095426,0.28550627,700.51,699.31,1.0659833]
[1736913096324,0.28550627,700.51,699.32,1.0659833]
[1736913096825,0.28550627,700.51,699.32,1.9159833]
[1736913097023,0.28550627,700.51,699.33,0.28598801]
[1736913097925,1.07098743,700.67,699.33,0.28598801]
[1736913098927,1.07098743,700.83,699.33,0.28598801]
[1736913099928,1.07098743,700.89,699.33,0.28598801]
[1736913100132,0.54780483,700.88,699.33,0.28598801]
[1736913100329,0.26244928,700.87,699.33,0.28598801]
[1736913100927,0.28535555,700.88,699.33,0.28598801]
[1736913100928,0.26244961,700.86,699.33,0.28598801]
[1736913101129,0.26244961,700.85,699.33,0.28598801]
[1736913101323,0.28535555,700.88,699.33,0.28598801]
[1736913101523,0.26244195,700.87,699.33,0.28598801]
[1736913103531,0.28535555,700.88,699.33,0.28598801]
[1736913103731,0.26243836,700.87,699.33,0.28598801]
[1736913104125,0.28535555,700.88,699.33,0.28598801]
[1736913117843,0.26241458,700.87,699.33,0.28598801]
[1736913119948,0.26241458,700.87,699.33,1.47998801]
[1736913120149,0.26245249,700.86,699.33,1.47998801]
[1736913120351,0.26245249,700.85,699.33,1.47998801]
[1736913120544,0.26245249,700.84,699.33,1.47998801]
[1736913120848,0.28535555,700.88,699.33,1.47998801]
[1736913120849,0.26245249,700.83,699.33,1.47998801]
[1736913121151,0.26245249,700.82,699.33,1.47998801]
[1736913121343,0.26245249,700.81,699.33,1.47998801]
[1736913121550,0.26245249,700.8,699.33,1.47998801]
[1736913121748,0.26245249,700.79,699.33,1.47998801]
[1736913121950,0.26245983,700.78,699.33,1.47998801]
[1736913122149,0.26245983,700.77,699.33,1.47998801]
[1736913122351,0.26245983,700.76,699.33,1.47998801]
[1736913122650,0.26245983,700.75,699.33,1.47998801]
[1736913122852,0.26245983,700.87,699.33,1.47998801]
[1736913123149,0.26245983,700.86,699.33,1.47998801]
[1736913123345,0.54782759,700.85,699.33,1.47998801]
[1736913123552,0.54783166,700.84,699.33,1.47998801]
[1736913123747,0.26245983,700.83,699.33,1.47998801]
[1736913125849,0.28537183,700.84,699.33,1.47998801]
[1736913136856,0.2624745,700.83,699.33,1.47998801]
[1736913137054,0.28537998,700.82,699.33,1.47998801]
[1736913137255,0.2624745,700.81,699.33,1.47998801]
[1736913137448,0.28538812,700.8,699.33,1.47998801]
[1736913137652,0.2624745,700.79,699.33,1.47998801]
[1736913137848,1.07098743,700.72,699.33,1.47998801]
[1736913138052,0.2624745,700.71,699.33,1.47998801]
[1736913138549,0.26248987,700.7,699.33,1.47998801]
[1736913138756,0.26248987,700.69,699.33,1.47998801]
[1736913139358,0.26248669,700.68,699.33,1.47998801]
[1736913139581,0.26248669,700.67,699.33,1.47998801]
[1736913139857,0.26248669,700.66,699.33,1.47998801]
[1736913140057,0.26248669,700.65,699.33,1.47998801]
[1736913140254,1.07098743,700.71,699.33,1.47998801]
[1736913140457,0.26248886,700.7,699.33,1.47998801]
[1736913141559,0.26248873,700.69,699.33,1.47998801]
[1736913141758,0.26248873,700.68,699.33,1.47998801]
[1736913141958,0.26248873,700.67,699.33,1.47998801]
[1736913142159,0.26248873,700.66,699.33,1.47998801]
[1736913142361,0.26248873,700.65,699.33,1.47998801]
[1736913142658,1.07098743,700.71,699.33,1.47998801]
[1736913142659,0.26248873,700.64,699.33,1.47998801]
[1736913142860,0.26248873,700.63,699.33,1.47998801]
[1736913143059,0.26248873,700.62,699.33,1.47998801]
[1736913143259,1.07098743,700.7,699.33,1.47998801]
[1736913143458,0.26248882,700.69,699.33,1.47998801]
[1736913144161,1.33347531,700.68,699.33,1.47998801]
[1736913144363,0.26248788,700.67,699.33,1.47998801]
[1736913145555,1.07098743,700.62,699.33,1.47998801]
[1736913145760,0.26248788,700.61,699.33,1.47998801]
[1736913146760,1.07098743,700.62,699.33,1.47998801]
[1736913147061,0.26251513,700.61,699.33,1.47998801]
[1736913149064,1.33350256,700.61,699.33,1.47998801]
[1736913149363,0.26251513,700.6,699.33,1.47998801]
[1736913149763,0.26251712,700.59,699.33,1.47998801]
[1736913149959,0.26251712,700.58,699.33,1.47998801]
[1736913150164,0.26251712,700.57,699.33,1.47998801]
[1736913150365,0.26251712,700.56,699.33,1.47998801]
[1736913150569,0.26251712,700.55,699.33,1.47998801]
[1736913150756,0.26251712,700.54,699.33,1.47998801]
[1736913150961,0.26251712,700.53,699.33,1.47998801]
[1736913151156,0.26251712,700.52,699.33,1.47998801]
[1736913151362,1.07098743,700.61,699.33,1.47998801]
[1736913151565,1.07098743,700.57,699.33,1.47998801]
[1736913151757,0.26253417,700.56,699.33,1.47998801]
[1736913152363,0.26253332,700.55,699.33,1.47998801]
[1736913152565,0.26253332,700.54,699.33,1.47998801]
[1736913152766,0.26253332,700.53,699.33,1.47998801]
[1736913152963,0.26253332,700.52,699.33,1.47998801]
[1736913153162,0.26253332,700.51,699.33,1.47998801]
[1736913153365,1.07098743,700.55,699.33,1.47998801]
[1736913153566,0.26254085,700.54,699.33,1.47998801]
[1736913154363,1.33352828,700.54,699.33,1.47998801]
[1736913154569,0.26253663,700.53,699.33,1.47998801]
[1736913155863,1.07098743,700.54,699.33,1.47998801]
[1736913156060,0.26253815,700.53,699.33,1.47998801]
[1736913157067,1.33352558,700.53,699.33,1.47998801]
[1736913157262,1.07098743,700.53,699.33,1.47998801]
[1736913158468,1.07098743,700.76,699.33,1.47998801]
[1736913158667,0.28540849,700.75,699.33,1.47998801]
[1736913167173,0.26255967,700.74,699.33,1.47998801]
[1736913167672,1.07098743,700.7,699.33,1.47998801]
[1736913167873,0.26255967,700.69,699.33,1.47998801]
[1736913168073,0.285437,700.68,699.33,1.47998801]
[1736913168273,0.26255967,700.67,699.33,1.47998801]
[1736913168474,0.28544515,700.66,699.33,1.47998801]
[1736913168675,1.3335471,700.65,699.33,1.47998801]
[1736913168876,0.54801296,700.64,699.33,1.47998801]
[1736913169078,0.54801928,700.63,699.33,1.47998801]
[1736913169380,0.26256191,700.62,699.33,1.47998801]
[1736913169575,0.28546552,700.61,699.33,1.47998801]
[1736913170672,1.35645295,700.61,699.33,1.47998801]
[1736913171879,0.28546552,700.61,699.33,1.47998801]
[1736913172181,0.26256119,700.6,699.33,1.47998801]
[1736913173180,1.07098743,700.57,699.33,1.47998801]
[1736913175181,0.26255977,700.56,699.33,1.47998801]
[1736913175478,1.07098743,700.55,699.33,1.47998801]
[1736913175682,0.26255977,700.54,699.33,1.47998801]
[1736913176977,1.07098743,700.49,699.33,1.47998801]
[1736913177181,0.26255977,700.48,699.33,1.47998801]
[1736913177382,0.26255054,700.47,699.33,1.47998801]
[1736913177581,0.26255054,700.46,699.33,1.47998801]
[1736913177776,0.26255054,700.45,699.33,1.47998801]
[1736913178082,1.33353797,700.44,699.33,1.47998801]
[1736913178278,0.26255054,700.43,699.33,1.47998801]
[1736913179083,1.07098743,700.41,699.33,1.47998801]
[1736913181079,1.07098743,700.39,699.33,1.47998801]
[1736913182180,1.07098743,700.37,699.33,1.47998801]
[1736913183084,0.8220324,700.6,699.33,1.47998801]
[1736913183085,1.07098743,700.33,699.33,1.47998801]
[1736913184784,1.07098743,700.29,699.33,1.47998801]
[1736913185585,1.07098743,700.26,699.33,1.47998801]
[1736913187084,1.07098743,700.27,699.33,1.47998801]
[1736913187888,1.07098743,700.26,699.33,1.47998801]
[1736913188884,1.07098743,700.28,699.33,1.47998801]
[1736913191085,1.07098743,700.27,699.33,1.47998801]
[1736913193292,0.8220324,700.6,699.33,1.47998801]
[1736913193293,1.07098743,700.32,699.33,1.47998801]
[1736913194393,1.07098743,700.36,699.33,1.47998801]
[1736913196289,1.07098743,700.37,699.33,1.47998801]
[1736913198496,1.07098743,700.38,699.33,1.47998801]
[1736913199395,1.07098743,700.43,699.33,1.47998801]
[1736913200688,1.07098743,700.44,699.33,1.47998801]
[1736913201692,1.07098743,700.44,699.34,1.0659833]
[1736913202995,1.07098743,700.48,699.35,1.0659833]
[1736913203998,1.07098743,700.5,699.34,2.1869833]
[1736913205100,1.07098743,700.51,699.34,1.121]
[1736913206104,1.07098743,700.53,699.34,1.121]
[1736913207204,1.07098743,700.55,699.36,1.0659833]
[1736913208203,1.07098743,700.6,699.37,1.0659833]
[1736913208401,0.26248626,700.59,699.37,1.0659833]
[1736913209402,0.26248626,700.59,699.35,1.0659833]
[1736913209609,1.07098743,700.63,699.35,1.0659833]
[1736913209801,0.26248684,700.6,699.35,1.0659833]
[1736913210607,0.26248684,700.6,699.34,1.121]
[1736913210608,1.07098743,700.65,699.34,2.1869833]
[1736913210906,0.26248073,700.6,699.34,2.1869833]
[1736913212307,0.26248701,700.59,699.34,2.1869833]
[1736913212607,0.26248701,700.58,699.34,1.121]
[1736913212806,1.07098743,700.67,699.34,1.121]
[1736913213007,0.26248769,700.6,699.34,1.121]
[1736913214107,1.07098743,700.68,699.34,1.121]
[1736913214304,1.07098743,700.71,699.34,1.121]
[1736913215309,1.07098743,700.72,699.34,1.121]
[1736913216610,0.26248717,700.6,699.34,1.121]
[1736913218011,0.26248693,700.59,699.34,1.121]
[1736913218310,0.26248693,700.58,699.34,1.121]
[1736913218511,1.07098743,700.72,699.34,1.121]
[1736913218711,0.26248716,700.6,699.34,1.121]
[1736913220908,0.26248779,700.59,699.34,1.121]
[1736913221105,0.26248779,700.58,699.34,1.121]
[1736913221305,1.07098743,700.7,699.34,1.121]
[1736913221503,0.26248751,700.6,699.34,1.121]
[1736913223510,1.07098743,700.68,699.34,1.121]
[1736913223716,0.26250207,700.6,699.34,1.121]
[1736913225811,1.07098743,700.56,699.34,1.121]
[1736913226015,0.26250207,700.55,699.34,1.121]
[1736913226210,1.07098743,700.56,699.34,1.121]
[1736913226413,0.26254587,700.55,699.34,1.121]
[1736913226808,1.07098743,700.54,699.34,1.121]
[1736913227016,0.26254587,700.53,699.34,1.121]
[1736913228211,1.3335333,700.53,699.34,1.121]
[1736913228412,0.26254587,700.52,699.34,1.121]
[1736913229012,0.26253858,700.51,699.34,1.121]
[1736913229219,0.26253858,700.5,699.34,1.121]
[1736913229911,0.26253881,700.49,699.34,1.121]
[1736913230115,0.26253881,700.48,699.34,1.121]
[1736913230316,1.07098743,700.5,699.34,1.121]
[1736913230512,0.26253964,700.49,699.34,1.121]
[1736913232013,0.26253867,700.48,699.34,1.121]
[1736913232216,1.07098743,700.5,699.34,1.121]
[1736913232616,1.07098743,700.49,699.34,1.121]
[1736913233622,1.07098743,700.53,699.35,1.0659833]
[1736913234622,1.07098743,700.55,699.39,1.0659833]
[1736913235021,1.07098743,700.55,699.39,2.1279833]
[1736913235723,2.18659934,701.07,699.39,2.1279833]
[1736913235724,1.07098743,700.58,699.39,1.062]
[1736913237421,1.35645295,700.61,699.39,2.1279833]
[1736913237921,1.35645295,700.61,699.4,0.28595939]
[1736913238518,0.28546552,700.61,699.4,0.28595939]
[1736913247128,0.28546552,700.61,699.4,1.20695939]
[1736913256428,1.07098743,701.09,699.4,1.20695939]
[1736913256632,0.28527414,701.08,699.4,1.20695939]
[1736913256933,0.26239562,701.07,699.4,1.20695939]
[1736913257232,0.28528228,701.06,699.4,1.20695939]
[1736913257432,0.26239562,701.05,699.4,1.20695939]
[1736913257633,0.54768197,701.05,699.4,1.20695939]
[1736913257835,0.26239562,701.04,699.4,1.20695939]
[1736913258731,0.28528635,701.05,699.4,1.20695939]
[1736913259036,0.28528635,701.05,699.4,2.27294269]
[1736913259037,0.26239548,701.04,699.4,2.27294269]
[1736913259936,0.26239548,701.04,699.4,1.20695939]
[1736913261533,0.26239819,701.03,699.4,1.20695939]
[1736913261737,0.26239819,701.02,699.4,1.20695939]
[1736913262039,0.26239819,701.01,699.4,1.20695939]
[1736913262233,0.28528635,701.05,699.4,1.20695939]
[1736913262431,0.26239646,701.04,699.4,1.20695939]
[1736913263941,1.33338389,701.04,699.4,1.20695939]
[1736913264140,0.26239646,701.03,699.4,1.20695939]
[1736913264340,0.26239631,701.02,699.4,1.20695939]
[1736913264641,0.26239631,701.01,699.4,1.20695939]
[1736913264839,0.26239631,701.0,699.4,1.20695939]
[1736913265040,0.26239631,700.99,699.45,1.0659833]
[1736913265244,0.26239631,700.99,699.46,0.28593486]
[1736913266046,0.26239631,700.99,699.46,1.35191816]
[1736913266246,0.26239631,700.98,699.46,1.35191816]
[1736913266446,1.07098743,701.04,699.46,1.35191816]
[1736913266447,0.26239631,700.97,699.46,1.35191816]
[1736913266642,0.26239631,700.96,699.46,1.35191816]
[1736913266845,0.26239631,700.95,699.46,1.35191816]
[1736913267046,1.07098743,701.02,699.5,1.0659833]
[1736913267341,0.26238268,701.01,699.5,1.0659833]
[1736913267946,1.07098743,701.0,699.52,1.0659833]
[1736913268147,0.26238268,700.99,699.53,0.28590625]
[1736913269051,1.07098743,700.97,699.55,1.0659833]
[1736913269251,0.26238268,700.96,699.56,0.28589399]
[1736913269749,1.07098743,700.97,699.56,0.28589399]
[1736913269950,0.26239979,700.96,699.56,0.28589399]
[1736913270749,1.07098743,700.94,699.56,0.28589399]
[1736913271045,0.26240464,700.93,699.56,0.28589399]
[1736913271650,1.07098743,700.9,699.56,0.28589399]
[1736913271847,0.26240464,700.89,699.56,0.28589399]
[1736913272549,1.07098743,700.9,699.56,0.28589399]
[1736913272852,1.33339301,700.89,699.56,0.28589399]
[1736913273048,0.26240558,700.88,699.56,0.28589399]
[1736913274052,1.07098743,700.9,699.56,0.28589399]
[1736913274053,0.26240558,700.87,699.56,0.28589399]
[1736913274251,0.26240558,700.86,699.56,0.28589399]
[1736913274454,0.26240558,700.85,699.56,0.28589399]
[1736913274644,1.07098743,700.9,699.56,0.28589399]
[1736913274846,0.26241428,700.89,699.56,0.28589399]
[1736913275152,1.07098743,700.87,699.56,0.28589399]
[1736913275550,0.26242023,700.86,699.56,0.28589399]
[1736913276350,1.07098743,700.84,699.56,1.37189399]
[1736913276546,0.26242023,700.83,699.56,1.37189399]
[1736913277247,1.07098743,700.82,699.56,1.37189399]
[1736913277451,0.26242023,700.81,699.56,1.37189399]
[1736913277647,1.07098743,700.82,699.56,1.37189399]
[1736913277849,0.26242453,700.81,699.56,1.37189399]
[1736913278244,0.262426,700.8,699.56,1.37189399]
[1736913278447,0.262426,700.79,699.56,1.37189399]
[1736913278651,1.07098743,700.83,699.56,1.37189399]
[1736913278950,0.26241181,700.82,699.56,1.37189399]
[1736913279346,1.33339924,700.82,699.56,1.37189399]
[1736913279549,0.26241181,700.81,699.56,1.37189399]